[Event "2nd Irena Warakomska Memorial-A"]
[Site "Suwalki"]
[Date "2018.08.01"]
[Round "1"]
[White "Ulanowski, Karol"]
[Black "Tihonov, Jurij"]
[Result "1-0"]
[ECO "B94"]
[WhiteElo "2149"]
[BlackElo "2385"]
[Annotator "NA"]
[PlyCount "77"]
[EventDate "2018.08.01"]
[EventType "swiss"]
[EventCountry "POL"]
[SourceTitle "playchess.com"]
[Source "ChessBase"]
[SourceQuality "1"]
[TimeControl "40/5400+30:1800+30"]

1. e4 {[%emt 0:00:00]} c5 {[%emt 0:00:00]} 2. Nf3 {[%emt 0:00:00]} d6 {[%emt 0:00:02]} 3. d4 {[%emt 0:00:00]} cxd4 {[%emt 0:00:07]} 4. Nxd4 {[%emt 0:00:00]} Nf6 {[%emt 0:00:09]} 5. Nc3 {[%emt 0:00:00]} a6 {[%emt 0:00:08]} 6. Bg5 {[%emt 0:00:00]} Nbd7 {[%emt 0:00:19]} 7. Bc4 {[%emt 0:00:17]} e6 {[%emt 0:02:58]} 8. Qe2 {[%emt 0:01:14]} h6 {[%emt 0:00:46]} 9. Bh4 {[%emt 0:03:40]} g5 {[%emt 0:05:26]} 10. Bg3 Ne5 {[%emt 0:00:08]} 11. Bb3 {[%emt 0:04:56]} Qc7 {[%emt 0:00:52]} 12. h4 {[%emt 0:05:35]} Rg8 {[%emt 0:01:05]} 13. hxg5 {[%emt 0:11:07]} hxg5 {[%emt 0:00:09]} 14. O-O-O {[%emt 0:02:40]} Bd7 {[%emt 0:00:33]} 15. f3 {[%emt 0:03:20]} b5 {[%emt 0:06:02]} 16. a3 {[%emt 0:00:06]} Rb8 {[%emt 0:02:09]} 17. f4 {[%emt 0:09:43]} gxf4 {[%emt 0:02:36]} 18. Bxf4 {[%emt 0:00:06]} Nfg4 {[%emt 0:08:16]} 19. Nf3 {[%emt 0:15:41]} Qc5 {[%emt 0:06:13]} 20. Rh7 {[%emt 0:13:16]} a5 {[%emt 0:14:38]} 21. Nxe5 {[%emt 0:08:02]} dxe5 {[%emt 0:03:53]} 22. Qd2 {[%emt 0:01:39]} Qc7 {[%emt 0:11:55]} 23. Bg5 {[%emt 0:06:26]} a4 {[%emt 0:03:25]} 24. Nxb5 {[%emt 0:02:59]} Rxb5 {[%emt 0:27:04]} 25. Bxe6 {[%emt 0:01:07]} fxe6 {[%emt 0:00:09]} 26. Rxd7 {[%emt 0:00:09]} Qc6 {[%emt 0:00:50]} 27. Ra7 {[%emt 0:00:44]} Bd6 28. Bh4 {[%emt 0:06:43]} Rb6 {[%emt 0:02:48]} 29. Qd3 {[%emt 0:01:17]} Rf8 {[%emt 0:00:42]} 30. Qh3 {[%emt 0:01:30]} Qxe4 {[%emt 0:00:48]} 31. Bg5 {[%emt 0:00:44]} Rb7 {[%emt 0:00:34]} 32. Qh5+ {[%emt 0:01:28]} Rbf7 {[%emt 0:00:34]} 33. Rxd6 {[%emt 0:00:40]} Nf6 {[%emt 0:00:21]} 34. Rxe6+ {[%emt 0:00:38]} Kd8 {[%emt 0:00:07]} 35. Rd6+ {[%emt 0:01:00]} Ke8 {[%emt 0:00:32]} 36. Bxf6 {[%emt 0:00:19]} Qf4+ {[%emt 0:00:15]} 37. Kb1 {[%emt 0:00:10]} Qf1+ {[%emt 0:00:05]} 38. Rd1 {[%emt 0:00:30]} Qxf6 {[%emt 0:00:03]} 39. Ra5 {[%emt 0:00:14]} 1-0

[Event "2nd Irena Warakomska Memorial-A"]
[Site "Suwalki"]
[Date "2018.08.01"]
[Round "1"]
[White "Harshini, A."]
[Black "Lewtak, Damian"]
[Result "1/2-1/2"]
[ECO "C12"]
[WhiteElo "2124"]
[BlackElo "2369"]
[Annotator "NA"]
[PlyCount "90"]
[EventDate "2018.08.01"]
[EventType "swiss"]
[EventCountry "POL"]
[SourceTitle "playchess.com"]
[Source "ChessBase"]
[SourceQuality "1"]
[TimeControl "40/5400+30:1800+30"]

1. e4 {[%emt 0:00:00]} e6 {[%emt 0:00:00]} 2. d4 {[%emt 0:00:00]} d5 {[%emt 0:00:00]} 3. Nc3 {[%emt 0:00:00]} Nf6 {[%emt 0:02:37]} 4. Bg5 {[%emt 0:00:07]} Bb4 {[%emt 0:04:28]} 5. e5 {[%emt 0:06:42]} h6 {[%emt 0:00:10]} 6. Bd2 {[%emt 0:00:07]} Bxc3 {[%emt 0:02:04]} 7. Bxc3 {[%emt 0:00:58]} Ne4 {[%emt 0:00:08]} 8. Bd3 {[%emt 0:00:28]} Nxc3 {[%emt 0:01:00]} 9. bxc3 {[%emt 0:00:05]} c5 {[%emt 0:01:02]} 10. Nf3 {[%emt 0:00:40]} Nc6 {[%emt 0:02:38]} 11. O-O {[%emt 0:00:43]} Qa5 {[%emt 0:03:30]} 12. Qe1 {[%emt 0:06:00]} Bd7 {[%emt 0:07:20]} 13. c4 {[%emt 0:08:46]} dxc4 {[%emt 0:03:30]} 14. Bxc4 {[%emt 0:01:22]} cxd4 {[%emt 0:02:37]} 15. Qxa5 {[%emt 0:01:36]} Nxa5 {[%emt 0:00:06]} 16. Bb3 {[%emt 0:05:56]} Nc6 {[%emt 0:06:27]} 17. Rad1 {[%emt 0:00:44]} O-O-O {[%emt 0:06:40]} 18. Rfe1 {[%emt 0:01:04]} Kc7 {[%emt 0:02:32]} 19. Nxd4 {[%emt 0:01:51]} Nxd4 {[%emt 0:00:53]} 20. Rxd4 {[%emt 0:00:07]} Bc6 {[%emt 0:00:43]} 21. Red1 {[%emt 0:14:54]} a5 {[%emt 0:05:26]} 22. f3 {[%emt 0:04:12]} b5 {[%emt 0:11:15]} 23. Rxd8 {[%emt 0:04:37]} Rxd8 {[%emt 0:00:07]} 24. Rxd8 {[%emt 0:00:12]} Kxd8 {[%emt 0:00:05]} 25. a3 {[%emt 0:05:12]} a4 {[%emt 0:07:38]} 26. Ba2 {[%emt 0:00:06]} Bd5 {[%emt 0:00:19]} 27. Bb1 {[%emt 0:08:16]} b4 {[%emt 0:00:06]} 28. axb4 {[%emt 0:00:16]} a3 {[%emt 0:00:09]} 29. Kf2 {[%emt 0:00:04]} a2 {[%emt 0:00:04]} 30. Bxa2 {[%emt 0:00:03]} Bxa2 {[%emt 0:00:08]} 31. Ke3 {[%emt 0:00:04]} Kc7 {[%emt 0:01:53]} 32. Kd4 {[%emt 0:00:02]} Kb6 {[%emt 0:01:32]} 33. c4 {[%emt 0:00:21]} Bb3 {[%emt 0:02:51]} 34. f4 {[%emt 0:10:23]} Bd1 {[%emt 0:03:38]} 35. Ke3 {[%emt 0:02:02]} f6 {[%emt 0:00:35]} 36. g3 {[%emt 0:00:29]} fxe5 {[%emt 0:03:04]} 37. fxe5 {[%emt 0:00:02]} Kc6 {[%emt 0:00:20]} 38. Kd2 {[%emt 0:01:39]} Bg4 {[%emt 0:00:37]} 39. Ke3 {[%emt 0:00:15]} Bh3 {[%emt 0:00:26]} 40. Kf2 {[%emt 0:00:00]} Kd7 {[%emt 0:00:00]} 41. Ke3 {[%emt 0:03:35]} Bf1 {[%emt 0:01:43]} 42. Kd4 {[%emt 0:00:06]} Ke7 43. Kc5 Kf7 44. b5 Ke7 45. Kb4 Kd8 1/2-1/2

[Event "2nd Irena Warakomska Memorial-A"]
[Site "Suwalki"]
[Date "2018.08.01"]
[Round "1"]
[White "Walkusz, Witoslaw"]
[Black "Teclaf, Pawel"]
[Result "0-1"]
[ECO "B13"]
[WhiteElo "2121"]
[BlackElo "2362"]
[Annotator "NA"]
[PlyCount "66"]
[EventDate "2018.08.01"]
[EventType "swiss"]
[EventCountry "POL"]
[SourceTitle "playchess.com"]
[Source "ChessBase"]
[SourceQuality "1"]
[TimeControl "40/5400+30:1800+30"]

1. e4 c6 2. d4 d5 3. exd5 cxd5 4. Bd3 Nc6 5. c3 Qc7 6. h3 e6 7. Nf3 Bd6 8. O-O Nge7 9. Re1 Ng6 10. Nbd2 f6 11. Nf1 O-O 12. Qc2 Qf7 13. a3 e5 14. Bb5 e4 15. N3h2 f5 16. f3 Be6 17. Rd1 a6 18. Bxc6 bxc6 19. b4 Qc7 20. Bd2 f4 21. fxe4 dxe4 22. Qxe4 Bd5 23. Qd3 f3 24. c4 fxg2 25. cxd5 gxf1=Q+ 26. Nxf1 Qf7 27. Qe2 Rae8 28. Be3 Nf4 29. Qg4 h5 30. Bxf4 hxg4 31. Bxd6 Qf2+ 32. Kh1 Re2 33. Ne3 Qf3+ 0-1

[Event "2nd Irena Warakomska Memorial-A"]
[Site "Suwalki"]
[Date "2018.08.01"]
[Round "1"]
[White "Tarun, V Kanth"]
[Black "Punin, Andrii"]
[Result "1/2-1/2"]
[ECO "E20"]
[WhiteElo "2102"]
[BlackElo "2339"]
[Annotator "NA"]
[PlyCount "49"]
[EventDate "2018.08.01"]
[EventType "swiss"]
[EventCountry "POL"]
[SourceTitle "playchess.com"]
[Source "ChessBase"]
[SourceQuality "1"]
[TimeControl "40/5400+30:1800+30"]

1. d4 {[%emt 0:00:17]} Nf6 {[%emt 0:00:00]} 2. c4 {[%emt 0:00:16]} e6 {[%emt 0:00:00]} 3. Nc3 {[%emt 0:00:08]} Bb4 {[%emt 0:00:00]} 4. f3 {[%emt 0:00:06]} c5 {[%emt 0:00:00]} 5. d5 {[%emt 0:00:55]} b5 {[%emt 0:00:01]} 6. e4 {[%emt 0:00:13]} O-O {[%emt 0:00:07]} 7. e5 {[%emt 0:00:18]} Ne8 {[%emt 0:00:47]} 8. f4 {[%emt 0:00:49]} exd5 {[%emt 0:01:22]} 9. cxd5 {[%emt 0:01:45]} d6 {[%emt 0:00:10]} 10. Nf3 {[%emt 0:05:10]} c4 {[%emt 0:00:20]} 11. a4 {[%emt 0:00:49]} Nd7 {[%emt 0:00:28]} 12. Be2 {[%emt 0:05:54]} Qb6 {[%emt 0:02:35]} 13. axb5 {[%emt 0:00:29]} Nc7 {[%emt 0:00:49]} 14. Qd4 {[%emt 0:02:15]} Qxd4 {[%emt 0:00:18]} 15. Nxd4 {[%emt 0:00:08]} dxe5 {[%emt 0:00:11]} 16. Nc6 {[%emt 0:31:11]} Nxd5 {[%emt 0:02:50]} 17. Bf3 {[%emt 0:05:00]} e4 {[%emt 0:15:20]} 18. Nxb4 {[%emt 0:00:22]} Nxc3 {[%emt 0:00:09]} 19. bxc3 {[%emt 0:00:42]} exf3 {[%emt 0:00:06]} 20. gxf3 {[%emt 0:00:05]} a5 {[%emt 0:14:34]} 21. bxa6 {[%emt 0:05:54]} Nc5 {[%emt 0:00:49]} 22. Be3 {[%emt 0:00:49]} Nxa6 {[%emt 0:00:40]} 23. Nxa6 {[%emt 0:02:25]} Rxa6 {[%emt 0:00:07]} 24. Rxa6 {[%emt 0:00:14]} Bxa6 {[%emt 0:00:05]} 25. Kf2 {[%emt 0:00:35]} 1/2-1/2

[Event "2nd Irena Warakomska Memorial-A"]
[Site "Suwalki"]
[Date "2018.08.01"]
[Round "1"]
[White "Maj, Pawel"]
[Black "Goluch, Piotr"]
[Result "1/2-1/2"]
[ECO "A45"]
[WhiteElo "2071"]
[BlackElo "2301"]
[Annotator "NA"]
[PlyCount "83"]
[EventDate "2018.08.01"]
[EventType "swiss"]
[EventCountry "POL"]
[SourceTitle "playchess.com"]
[Source "ChessBase"]
[SourceQuality "1"]
[TimeControl "40/5400+30:1800+30"]

1. d4 {[%emt 0:00:00]} Nf6 {[%emt 0:00:02]} 2. Bg5 {[%emt 0:00:00]} Ne4 {[%emt 0:01:05]} 3. Bf4 {[%emt 0:00:00]} d5 {[%emt 0:01:17]} 4. e3 {[%emt 0:00:00]} c5 {[%emt 0:00:42]} 5. Bd3 {[%emt 0:05:00]} cxd4 {[%emt 0:00:51]} 6. Bxe4 {[%emt 0:01:56]} dxe4 {[%emt 0:00:04]} 7. Qxd4 {[%emt 0:00:23]} Qa5+ {[%emt 0:05:53]} 8. Nc3 {[%emt 0:11:01]} Nc6 {[%emt 0:00:05]} 9. Qxe4 {[%emt 0:04:52]} Bf5 {[%emt 0:00:31]} 10. Qd5 {[%emt 0:03:43]} Qxd5 {[%emt 0:00:07]} 11. Nxd5 {[%emt 0:00:06]} O-O-O {[%emt 0:00:12]} 12. Nc3 {[%emt 0:08:07]} e5 {[%emt 0:00:17]} 13. Bg5 {[%emt 0:03:13]} f6 {[%emt 0:06:43]} 14. e4 {[%emt 0:03:33]} fxg5 {[%emt 0:12:04]} 15. exf5 {[%emt 0:01:07]} Bb4 {[%emt 0:00:10]} 16. Nge2 {[%emt 0:02:38]} Rhf8 {[%emt 0:01:23]} 17. a3 {[%emt 0:06:13]} Ba5 {[%emt 0:02:47]} 18. b4 {[%emt 0:02:00]} Bb6 {[%emt 0:00:05]} 19. Ne4 {[%emt 0:04:22]} Rxf5 {[%emt 0:01:47]} 20. c3 {[%emt 0:01:49]} g4 {[%emt 0:03:45]} 21. Rd1 {[%emt 0:02:08]} Rxd1+ {[%emt 0:00:06]} 22. Kxd1 {[%emt 0:00:04]} Kd7 {[%emt 0:00:56]} 23. h3 {[%emt 0:03:35]} gxh3 {[%emt 0:00:06]} 24. Rxh3 {[%emt 0:00:06]} h6 {[%emt 0:00:07]} 25. Ke1 {[%emt 0:04:29]} Ke6 {[%emt 0:03:13]} 26. Rd3 {[%emt 0:07:17]} Rf7 {[%emt 0:00:06]} 27. Rd6+ {[%emt 0:01:54]} Ke7 {[%emt 0:00:05]} 28. f3 {[%emt 0:01:08]} Bc7 {[%emt 0:04:07]} 29. Rg6 {[%emt 0:02:02]} Kf8 {[%emt 0:04:24]} 30. Nc5 {[%emt 0:04:16]} Nd8 {[%emt 0:03:39]} 31. Ng3 {[%emt 0:01:32]} b6 {[%emt 0:06:59]} 32. Ne6+ {[%emt 0:02:18]} Nxe6 {[%emt 0:00:05]} 33. Rxe6 {[%emt 0:00:04]} Rd7 {[%emt 0:05:40]} 34. Rc6 {[%emt 0:00:22]} Bd8 {[%emt 0:04:24]} 35. Ke2 {[%emt 0:00:07]} Kf7 {[%emt 0:00:19]} 36. Ne4 {[%emt 0:00:42]} Be7 {[%emt 0:00:06]} 37. a4 {[%emt 0:01:28]} h5 {[%emt 0:03:11]} 38. b5 {[%emt 0:01:34]} g6 {[%emt 0:01:54]} 39. Nd2 {[%emt 0:01:12]} Bg5 {[%emt 0:04:01]} 40. Nc4 {[%emt 0:00:00]} Bf4 {[%emt 0:00:00]} 41. Nd6+ {[%emt 0:02:47]} Kg7 {[%emt 0:04:14]} 42. Ne4 {[%emt 0:00:43]} 1/2-1/2

[Event "2nd Irena Warakomska Memorial-A"]
[Site "Suwalki"]
[Date "2018.08.02"]
[Round "2"]
[White "Warakomski, Tomasz"]
[Black "Zaika, Daniil"]
[Result "1/2-1/2"]
[ECO "B21"]
[WhiteElo "2512"]
[BlackElo "2213"]
[Annotator "ChessBase"]
[PlyCount "86"]
[EventDate "2018.08.01"]
[EventType "swiss"]
[EventCountry "POL"]
[SourceTitle "playchess.com"]
[Source "ChessBase"]
[SourceQuality "1"]
[TimeControl "40/5400+30:1800+30"]

1. e4 {[%emt 0:00:00]} c5 {[%emt 0:00:00]} 2. f4 {[%emt 0:00:00]} d5 {[%emt 0:02:12]} 3. exd5 {[%emt 0:00:00]} Nf6 {[%emt 0:00:16]} 4. Nc3 {[%emt 0:00:00]} Nxd5 {[%emt 0:03:09]} 5. Nf3 {[%emt 0:00:00]} Nxc3 {[%emt 0:25:29]} 6. bxc3 {[%emt 0:00:50]} g6 {[%emt 0:00:15]} 7. Bc4 {[%emt 0:12:54]} Bg7 {[%emt 0:00:24]} 8. Ne5 {[%emt 0:00:31]} O-O {[%emt 0:03:30]} 9. O-O {[%emt 0:00:08]} Nd7 {[%emt 0:02:36]} 10. Qe2 {[%emt 0:06:04]} Nb6 {[%emt 0:04:07]} 11. Bb3 {[%emt 0:00:49]} Qc7 {[%emt 0:07:59]} 12. a4 {[%emt 0:15:07]} Bxe5 {[%emt 0:07:37]} 13. Qxe5 {[%emt 0:00:09]} Qxe5 {[%emt 0:00:05]} 14. fxe5 {[%emt 0:00:04]} c4 {[%emt 0:00:03]} 15. Ba2 {[%emt 0:01:07]} Be6 {[%emt 0:01:42]} 16. Rb1 {[%emt 0:00:30]} Rab8 {[%emt 0:03:05]} 17. Ba3 {[%emt 0:07:29]} Rfe8 {[%emt 0:05:27]} 18. Bc5 {[%emt 0:01:21]} Nd7 {[%emt 0:00:14]} 19. Bd4 {[%emt 0:08:03]} Rec8 {[%emt 0:00:51]} 20. Rb4 {[%emt 0:04:13]} b6 {[%emt 0:02:30]} 21. Rfb1 {[%emt 0:00:44]} Rc6 {[%emt 0:01:56]} 22. a5 {[%emt 0:04:15]} Rcc8 {[%emt 0:09:07]} 23. axb6 {[%emt 0:12:00]} axb6 {[%emt 0:00:04]} 24. R1b2 {[%emt 0:00:10]} Rc6 {[%emt 0:01:47]} 25. Ra4 {[%emt 0:02:49]} Rbc8 {[%emt 0:06:38]} 26. Kf2 {[%emt 0:08:32]} g5 {[%emt 0:00:32]} 27. Rb5 {[%emt 0:02:22]} Kg7 {[%emt 0:00:33]} 28. Ke3 {[%emt 0:04:07]} Kg6 {[%emt 0:00:29]} 29. d3 {[%emt 0:00:29]} R8c7 {[%emt 0:08:33]} 30. Bxc4 {[%emt 0:07:22]} Bxc4 {[%emt 0:00:10]} 31. Rxc4 {[%emt 0:00:48]} Rxc4 {[%emt 0:00:04]} 32. dxc4 {[%emt 0:00:01]} Rxc4 {[%emt 0:02:15]} 33. Rd5 {[%emt 0:01:03]} Rc7 {[%emt 0:01:44]} 34. g4 {[%emt 0:02:00]} h5 {[%emt 0:00:25]} 35. h3 {[%emt 0:00:11]} hxg4 {[%emt 0:00:19]} 36. hxg4 {[%emt 0:00:04]} f6 {[%emt 0:01:08]} 37. exf6 {[%emt 0:00:58]} Nxf6 {[%emt 0:00:10]} 38. Bxf6 {[%emt 0:00:28]} exf6 {[%emt 0:00:10]} 39. Kd3 {[%emt 0:00:28]} Rc5 {[%emt 0:00:32]} 40. c4 {[%emt 0:00:00]} Rc6 {[%emt 0:00:00]} 41. Kd4 {[%emt 0:04:25]} Re6 {[%emt 0:04:19]} 42. c5 {[%emt 0:01:05]} bxc5+ {[%emt 0:01:21]} 43. Kxc5 {[%emt 0:01:04]} Re4 {[%emt 0:00:16]} 1/2-1/2

[Event "2nd Irena Warakomska Memorial-A"]
[Site "Suwalki"]
[Date "2018.08.02"]
[Round "2"]
[White "Venkataraman, Karthik"]
[Black "Pietruszewski, Marcin"]
[Result "1-0"]
[ECO "A07"]
[WhiteElo "2501"]
[BlackElo "2208"]
[Annotator "ChessBase"]
[PlyCount "117"]
[EventDate "2018.08.01"]
[EventType "swiss"]
[EventCountry "POL"]
[SourceTitle "playchess.com"]
[Source "ChessBase"]
[SourceQuality "1"]
[TimeControl "40/5400+30:1800+30"]

1. Nf3 {[%emt 0:00:00]} Nf6 {[%emt 0:01:48]} 2. g3 {[%emt 0:00:00]} d5 {[%emt 0:08:14]} 3. Bg2 {[%emt 0:00:21]} c6 {[%emt 0:04:20]} 4. O-O Bg4 5. d3 {[%emt 0:00:43]} Nbd7 {[%emt 0:01:10]} 6. h3 {[%emt 0:00:06]} Bxf3 {[%emt 0:00:14]} 7. Bxf3 {[%emt 0:00:29]} e5 {[%emt 0:00:45]} 8. e4 {[%emt 0:00:08]} dxe4 {[%emt 0:00:26]} 9. dxe4 {[%emt 0:00:06]} Bc5 {[%emt 0:00:52]} 10. Qe2 {[%emt 0:00:20]} O-O {[%emt 0:00:20]} 11. Nd2 {[%emt 0:00:57]} Qe7 {[%emt 0:00:38]} 12. a4 {[%emt 0:01:30]} a5 {[%emt 0:00:36]} 13. Nc4 {[%emt 0:01:40]} Rfd8 {[%emt 0:00:58]} 14. Bd2 {[%emt 0:01:37]} Bb4 {[%emt 0:02:11]} 15. Be3 {[%emt 0:02:03]} Ne8 {[%emt 0:03:13]} 16. Rfd1 {[%emt 0:01:21]} Nd6 {[%emt 0:02:07]} 17. Nb6 {[%emt 0:01:26]} Nxb6 {[%emt 0:07:13]} 18. Bxb6 {[%emt 0:00:05]} Re8 {[%emt 0:05:07]} 19. Bg4 {[%emt 0:02:02]} h5 {[%emt 0:10:09]} 20. Bxh5 {[%emt 0:01:12]} Ra6 {[%emt 0:01:43]} 21. Be3 {[%emt 0:02:11]} Nxe4 {[%emt 0:00:13]} 22. Qc4 {[%emt 0:03:26]} Nf6 {[%emt 0:10:35]} 23. Bg5 {[%emt 0:00:18]} Raa8 {[%emt 0:21:03]} 24. c3 {[%emt 0:00:40]} Bd6 {[%emt 0:00:25]} 25. Rxd6 {[%emt 0:03:13]} Qxd6 {[%emt 0:00:06]} 26. Bxf7+ {[%emt 0:00:05]} Kf8 {[%emt 0:03:04]} 27. Bxe8 {[%emt 0:00:32]} Rxe8 {[%emt 0:00:23]} 28. Be3 {[%emt 0:00:08]} Qd5 {[%emt 0:01:55]} 29. Qe2 {[%emt 0:00:52]} Kf7 {[%emt 0:05:38]} 30. Rd1 {[%emt 0:00:48]} Qe4 {[%emt 0:00:13]} 31. b3 {[%emt 0:01:37]} Rh8 {[%emt 0:04:00]} 32. Qc4+ {[%emt 0:00:31]} Qxc4 {[%emt 0:02:51]} 33. bxc4 {[%emt 0:00:04]} Ke6 {[%emt 0:02:06]} 34. Rb1 {[%emt 0:02:06]} Ne4 {[%emt 0:00:06]} 35. Rxb7 {[%emt 0:19:02]} Nxc3 {[%emt 0:00:14]} 36. Rxg7 {[%emt 0:00:10]} Nxa4 {[%emt 0:02:13]} 37. h4 {[%emt 0:00:52]} Nb2 {[%emt 0:00:44]} 38. Rg6+ {[%emt 0:00:25]} Kf7 {[%emt 0:00:34]} 39. Rxc6 {[%emt 0:00:20]} Ra8 {[%emt 0:00:02]} 40. Bc1 {[%emt 0:00:00]} Nd3 {[%emt 0:00:00]} 41. Ba3 {[%emt 0:01:14]} Rb8 {[%emt 0:03:50]} 42. Ra6 {[%emt 0:00:27]} Rb3 {[%emt 0:00:57]} 43. Rxa5 {[%emt 0:01:01]} Ke6 {[%emt 0:00:22]} 44. Kg2 {[%emt 0:01:26]} Kf5 {[%emt 0:00:35]} 45. h5 {[%emt 0:04:55]} Kg4 {[%emt 0:00:58]} 46. h6 {[%emt 0:10:15]} e4 {[%emt 0:19:12]} 47. Kf1 {[%emt 0:01:33]} Rb1+ {[%emt 0:07:01]} 48. Ke2 {[%emt 0:00:05]} Re1+ {[%emt 0:00:06]} 49. Kd2 {[%emt 0:00:04]} Rh1 {[%emt 0:00:03]} 50. Ra6 {[%emt 0:04:55]} Nxf2 {[%emt 0:00:09]} 51. Ke3 {[%emt 0:02:36]} Kxg3 {[%emt 0:02:00]} 52. Rg6+ {[%emt 0:00:08]} Ng4+ {[%emt 0:00:44]} 53. Kxe4 {[%emt 0:00:05]} Re1+ {[%emt 0:00:19]} 54. Kd5 {[%emt 0:01:43]} Kf4 {[%emt 0:01:11]} 55. Bb2 {[%emt 0:07:02]} Rh1 {[%emt 0:00:58]} 56. Bg7 {[%emt 0:00:15]} Ne3+ {[%emt 0:00:28]} 57. Kc5 {[%emt 0:00:29]} Rc1 {[%emt 0:00:18]} 58. h7 {[%emt 0:00:39]} Rxc4+ {[%emt 0:00:19]} 59. Kb5 {[%emt 0:00:05]} 1-0

[Event "2nd Irena Warakomska Memorial-A"]
[Site "Suwalki"]
[Date "2018.08.02"]
[Round "2"]
[White "Cukrowski, Filip"]
[Black "Sadzikowski, Daniel"]
[Result "1/2-1/2"]
[ECO "E07"]
[WhiteElo "2404"]
[BlackElo "2575"]
[Annotator "ChessBase"]
[PlyCount "27"]
[EventDate "2018.08.01"]
[EventType "swiss"]
[EventCountry "POL"]
[SourceTitle "playchess.com"]
[Source "ChessBase"]
[SourceQuality "1"]
[TimeControl "40/5400+30:1800+30"]

1. c4 {[%emt 0:12:38]} e6 {[%emt 0:00:52]} 2. g3 {[%emt 0:03:01]} d5 {[%emt 0:00:09]} 3. Bg2 {[%emt 0:04:23]} Nf6 {[%emt 0:00:39]} 4. Nf3 {[%emt 0:03:43]} Be7 {[%emt 0:05:51]} 5. O-O {[%emt 0:00:43]} O-O {[%emt 0:00:05]} 6. d4 {[%emt 0:02:42]} Nbd7 {[%emt 0:01:49]} 7. Nc3 {[%emt 0:03:35]} dxc4 {[%emt 0:00:15]} 8. e4 {[%emt 0:09:54]} b5 {[%emt 0:02:27]} 9. Nxb5 {[%emt 0:06:46]} Bb7 {[%emt 0:12:36]} 10. Bf4 {[%emt 0:11:45]} Bxe4 {[%emt 0:21:26]} 11. Bxc7 {[%emt 0:00:12]} Qc8 {[%emt 0:00:02]} 12. Bd6 {[%emt 0:00:26]} Qd8 {[%emt 0:00:02]} 13. Bc7 {[%emt 0:04:07]} Qc8 14. Ba5 1/2-1/2

[Event "2nd Irena Warakomska Memorial-A"]
[Site "Suwalki"]
[Date "2018.08.02"]
[Round "2"]
[White "Lewtak, Damian"]
[Black "Tarun, V Kanth"]
[Result "1-0"]
[ECO "A45"]
[WhiteElo "2369"]
[BlackElo "2102"]
[Annotator "NA"]
[PlyCount "115"]
[EventDate "2018.08.01"]
[EventType "swiss"]
[EventCountry "POL"]
[SourceTitle "playchess.com"]
[Source "ChessBase"]
[SourceQuality "1"]
[TimeControl "40/5400+30:1800+30"]

1. d4 {[%emt 0:00:00]} Nf6 {[%emt 0:00:00]} 2. Bf4 {[%emt 0:00:00]} c5 {[%emt 0:00:18]} 3. d5 {[%emt 0:00:20] A45: Trompowsky Attack} (3. e3 e6 4. Nd2 d5 5. Ngf3 Nc6 6. c3 Be7 7. h3 Bd6 8. dxc5 Bxc5 9. Bd3 O-O 10. O-O Bd6 11. Bxd6 Qxd6 12. e4 Rd8 13. Bc2 dxe4 14. Nxe4 Qe7 15. Qe2 {1-0 (67) So,W (2778)-Caruana,F (2816) Paris 2018}) 3... d6 {[%emt 0:01:08]} 4. Nc3 {[%emt 0:03:42]} g6 {[%emt 0:01:43]} 5. Nf3 {[%emt 0:02:24]} Bg7 6. g3 {[%emt 0:06:34]} a6 $146 {[%emt 0:05:21]} ({Predecessor:} 6... Qa5 7. Bd2 b5 8. Ne4 b4 9. Nxf6+ Bxf6 10. a3 Bxb2 11. Ra2 Bc3 12. Bxc3 bxc3 {0-1 (30) Cupaban Bautista,S-De Arco,L Bucaramanga 2008}) 7. a4 {[%emt 0:06:52]} O-O {[%emt 0:04:16]} 8. Bg2 {[%emt 0:00:44]} Nh5 {[%emt 0:01:46]} 9. Be3 e5 {[%emt 0:19:02]} 10. dxe6 {[%emt 0:05:32]} fxe6 11. Ne4 {[%emt 0:06:26]} d5 {[%emt 0:26:10]} 12. Nxc5 {[%emt 0:01:27]} Bxb2 {[%emt 0:00:39]} 13. Rb1 Bc3+ {[%emt 0:06:21]} 14. Bd2 {[%emt 0:03:05]} Bxd2+ {[%emt 0:00:10]} 15. Qxd2 Qc7 {[%emt 0:02:20]} 16. Qb4 {[%emt 0:07:14]} b5 17. Nd4 {[%emt 0:19:07]} Ng7 {[%emt 0:13:16]} 18. O-O {[%emt 0:05:37]} Nc6 {[%emt 0:07:47]} 19. Nxc6 {[%emt 0:00:34]} Qxc6 {[%emt 0:00:03]} 20. axb5 {[%emt 0:00:35]} axb5 21. Qxb5 {[%emt 0:00:09]} Qxb5 {[%emt 0:00:57]} 22. Rxb5 {[%emt 0:00:09]} Ba6 {[%emt 0:00:03]} 23. Nxa6 {[%emt 0:01:54]} Rxa6 {[%emt 0:00:01]} 24. Rc5 {[%emt 0:00:08]} Ra4 {[%emt 0:02:49]} 25. e4 {[%emt 0:03:27]} dxe4 {[%emt 0:00:11]} 26. Re1 e3 {[%emt 0:05:19]} 27. Rxe3 {[%emt 0:03:17]} Ra1+ {[%emt 0:00:55]} 28. Bf1 {[%emt 0:00:07]} Nf5 {[%emt 0:00:29]} 29. Re4 {[%emt 0:02:32]} Rd1 {[%emt 0:02:31]} 30. c3 {[%emt 0:05:17]} Rb8 31. Kg2 {[%emt 0:01:34]} Rb2 {[%emt 0:00:40]} 32. Bc4 {[%emt 0:02:21]} Rdd2 {[%emt 0:00:26]} 33. Bxe6+ {[%emt 0:06:19]} Kg7 {[%emt 0:00:38] [#]} 34. Rxf5 $14 {[%emt 0:00:46]} (34. Rc7+ $1 $16 Kh6 35. Rf4 Ne3+ 36. Kf3) 34... gxf5 {[%emt 0:00:15]} 35. Rf4 Rbc2 {[%emt 0:01:05]} 36. c4 {[%emt 0:01:25]} Rd6 {[%emt 0:00:40]} 37. Bxf5 {[%emt 0:00:29]} Rc3 {[%emt 0:00:24]} 38. Rg4+ Kf6 {[%emt 0:00:45]} 39. Bxh7 {[%emt 0:01:13]} Rd2 {[%emt 0:00:15]} 40. h4 {[%emt 0:00:00]} Ra3 {[%emt 0:00:00]} 41. Bg8 {[%emt 0:02:41]} Raa2 {[%emt 0:02:11]} 42. Rf4+ Kg7 43. Bd5 {[%emt 0:01:16]} Ra1 {[%emt 0:00:27]} 44. g4 {[%emt 0:02:27]} Rdd1 {[%emt 0:00:21]} 45. g5 {[%emt 0:02:04]} Rh1 46. Kf3 {[%emt 0:01:42]} Rhg1 {[%emt 0:01:15]} 47. Ke4 {[%emt 0:01:08]} Rae1+ 48. Kd4 {[%emt 0:01:11]} Re8 {[%emt 0:00:53]} 49. Kc5 {[%emt 0:01:01]} Rc8+ {[%emt 0:00:11]} 50. Kd6 {[%emt 0:00:34]} Rc1 {[%emt 0:01:00]} 51. h5 {[%emt 0:01:05]} Rd8+ 52. Ke7 {[%emt 0:00:07]} Rc8 {[%emt 0:00:51]} 53. Rf7+ {[%emt 0:00:44]} Kh8 {[%emt 0:00:01]} 54. g6 {[%emt 0:02:02]} Rc7+ 55. Kd6 {[%emt 0:00:08]} Rxf7 {[%emt 0:01:14]} 56. gxf7 {[%emt 0:00:08]} Kg7 {[%emt 0:00:10]} 57. h6+ {[%emt 0:00:07]} Kf8 {[%emt 0:00:19]} 58. h7 {[%emt 0:00:09]} 1-0